fUST/lending_fUST_20240606
["ID","MTS","AMOUNT","RATE_DAILY","PERIOD"]
[328643760,1717659789216,-535.36,0.00029625,40]
[328643761,1717659789244,-500.0,0.00029625,40]
[328643762,1717659789273,-535.36,0.00029625,40]
[328643763,1717659789302,-500.0,0.00029625,40]
[328643764,1717659789331,-535.36,0.00029625,40]
[328643765,1717659789359,-500.0,0.00029625,40]
[328643766,1717659789390,-535.36,0.00029625,40]
[328643767,1717659789418,-500.0,0.00029625,40]
[328643768,1717659789446,-535.36,0.00029625,40]
[328643769,1717659789475,-500.0,0.00029625,40]
[328643770,1717659789503,-535.36,0.00029625,40]
[328643771,1717659789531,-500.0,0.00029625,40]
[328643772,1717659789559,-535.36,0.00029625,40]
[328643773,1717659789586,-500.0,0.00029625,40]
[328643774,1717659789614,-535.36,0.00029625,40]
[328643775,1717659789642,-163.89152921,0.00029625,40]
[328643776,1717659789672,-535.44,0.00029625,40]
[328643777,1717659789700,-509.87203881,0.00029625,40]
[328643778,1717659789728,-500.0,0.00029625,40]
[328643779,1717659789756,-500.0,0.00029625,40]
[328643780,1717659789783,-500.0,0.00029625,40]
[328643781,1717659789809,-513.80199392,0.00029625,40]
[328643782,1717659789839,-500.0,0.00029625,40]
[328643783,1717659789868,-500.0,0.00029625,40]
[328643784,1717659789895,-502.98283879,0.00029625,40]
[328643785,1717659789926,-500.0,0.00029625,40]
[328643786,1717659789956,-500.0,0.00029625,40]
[328643787,1717659789984,-500.0,0.00029625,40]
[328643788,1717659790013,-500.0,0.00029625,40]
[328643789,1717659790047,-178.62809285,0.00029625,40]
[328643790,1717659790076,-500.89200816,0.00029625,40]
[328643791,1717659790102,-500.0,0.00029625,40]
[328643792,1717659790217,-503.05684271,0.00029625,40]
[328643793,1717659790244,-500.0,0.00029625,40]
[328643794,1717659790269,-500.0,0.00029625,40]
[328643795,1717659790296,-500.0,0.00029625,40]
[328643796,1717659790322,-500.0,0.00029625,40]
[328643797,1717659790350,-500.0,0.00029625,40]
[328643798,1717659790380,-500.0,0.00029625,40]
[328643799,1717659790408,-500.0,0.00029625,40]
[328643800,1717659790435,-230.07031882,0.00029625,40]
[328643801,1717659790462,-500.0,0.00029625,40]
[328643802,1717659790488,-441.35710702,0.00029625,40]
[328643803,1717659790902,608.07,0.00029622,40]
[328643804,1717659791139,3832.0,0.00022,10]
[328643805,1717659791595,500.0,0.00029622,40]
[328643806,1717659791629,500.0,0.00029622,40]
[328643899,1717660232601,-238.76353746,0.0001649,2]
[328643900,1717660232610,-261.03646254,0.0001649,2]
[328643903,1717660232622,-260.81671089,0.0001649,2]
[328643904,1717660232631,-280.11350677,0.00016491,2]
[328643906,1717660232640,-275.45969432,0.000165,2]
[328643908,1717660232649,-154.95351395,0.00019177,2]
[328643909,1717660232659,-167.589786,0.00019178,2]
[328643911,1717660232669,-167.019448,0.00019461,2]
[328643913,1717660232678,-4203.35777756,0.00019994,2]
[328644040,1717660246559,-1475.23055185,0.00019994,2]
[328644041,1717660246670,-5141.10464133,0.00019994,2]
[328644056,1717660827166,467.8735127,0.00022032,30]
[328644058,1717660880113,372.42677625,9.999e-05,2]
[328644060,1717661018769,186.74233784,9.999e-05,2]
[328644138,1717661432799,-155.61861487,0.00018623,2]
[328644140,1717661432809,-163.82196276,0.00018624,2]
[328644146,1717661432857,-15988.04026374,0.00018624,2]
[328644149,1717661432866,-169.3,0.0001874,3]
[328644152,1717661432876,-169.3,0.00019354,3]
[328644155,1717661432885,-4236.27632862,0.00019467,2]
[328644158,1717661432894,-150.0,0.00019743,2]
[328644161,1717661432903,-310.71615247,0.00019899,2]
[328644164,1717661432912,-641.29553263,0.00019932,2]
[328644167,1717661432922,-169.3,0.00019969,3]
[328644170,1717661432931,-155.2273967,0.00019994,2]
[328644172,1717661432940,-500.0,0.00019999,2]
[328644174,1717661432950,-500.0,0.00019999,2]
[328644176,1717661432959,-500.0,0.00019999,2]
[328644177,1717661432968,-500.0,0.00019999,2]
[328644178,1717661432977,-500.0,0.00019999,2]
[328644179,1717661432986,-500.0,0.00019999,2]
[328644180,1717661432995,-500.0,0.00019999,2]
[328644182,1717661433005,-462.26490283,0.00019999,2]
[328644183,1717661433014,-500.0,0.00019999,2]
[328644184,1717661433022,-500.0,0.00019999,2]
[328644186,1717661433032,-500.0,0.00019999,2]
[328644187,1717661433041,-500.0,0.00019999,2]
[328644189,1717661433050,-500.0,0.00019999,2]
[328644191,1717661433059,-500.0,0.00019999,2]
[328644193,1717661433068,-500.0,0.00019999,2]
[328644194,1717661433080,-500.0,0.00019999,2]
[328644195,1717661433089,-500.0,0.00019999,2]
[328644197,1717661433098,-500.0,0.00019999,2]
[328644199,1717661433107,-500.0,0.00019999,2]
[328644201,1717661433116,-500.0,0.00019999,2]
[328644203,1717661433126,-500.0,0.00019999,2]
[328644204,1717661433136,-500.0,0.00019999,2]
[328644206,1717661433145,-500.0,0.00019999,2]
[328644207,1717661433154,-500.0,0.00019999,2]
[328644208,1717661433164,-500.0,0.00019999,2]
[328644209,1717661433173,-500.0,0.00019999,2]
[328644210,1717661433182,-500.0,0.00019999,2]
[328644211,1717661433191,-500.0,0.00019999,2]
[328644212,1717661433200,-335.46535714,0.00019999,2]
[328644257,1717661438758,-1304.65959868,0.00019999,7]
[328644259,1717661438770,-164.53464286,0.00019999,2]
[328644261,1717661438780,-500.0,0.00019999,2]
[328644262,1717661438790,-500.0,0.00019999,2]
[328644264,1717661438800,-500.0,0.00019999,2]
[328644265,1717661438810,-326.90887473,0.00019999,2]
[328644266,1717661438819,-2.13837013,0.00019999,2]
[328644577,1717661442451,-3626.04180329,0.00018877,2]
[328644578,1717661442461,-3626.04180329,0.00018929,2]
[328644580,1717661442472,-3626.04180329,0.00019208,2]
[328644582,1717661442482,-3626.04180329,0.00019598,2]
[328644584,1717661442491,-282.88953964,0.00019899,2]
[328644585,1717661442501,-497.86162987,0.00019999,2]
[328644586,1717661442510,-500.0,0.00019999,2]
[328644587,1717661442520,-500.0,0.00019999,2]
[328644588,1717661442528,-500.0,0.00019999,2]
[328644589,1717661442537,-500.0,0.00019999,2]
[328644590,1717661442546,-436.20194964,0.00019999,2]
[328644591,1717661442558,-63.79805036,0.00019999,2]
[328644592,1717661442568,-500.0,0.00019999,2]
[328644593,1717661442578,-500.0,0.00019999,2]
[328644595,1717661442587,-500.0,0.00019999,2]
[328644596,1717661442596,-500.0,0.00019999,2]
[328644598,1717661442606,-500.0,0.00019999,2]
[328644599,1717661442615,-500.0,0.00019999,2]
[328644600,1717661442624,-500.0,0.00019999,2]
[328644601,1717661442633,-500.0,0.00019999,2]
[328644602,1717661442643,-500.0,0.00019999,2]
[328644603,1717661442652,-580.76765275,0.00019999,2]
[328644604,1717661442662,-500.0,0.00019999,2]
[328644605,1717661442672,-500.0,0.00019999,2]
[328644606,1717661442681,-500.0,0.00019999,2]
[328644607,1717661442690,-500.0,0.00019999,2]
[328644608,1717661442700,-500.0,0.00019999,2]
[328644609,1717661442709,-472.8681972,0.00019999,2]
[328644610,1717661442718,-175.12866891,0.0002,2]
[328644626,1717661444258,-9243.63870271,0.0002,2]
[328644650,1717661466030,686.02573019,9.999e-05,2]
[328644651,1717661475524,154.95351395,9.999e-05,2]
[328644654,1717661823383,759.55453663,9.999e-05,2]
[328644655,1717661894836,285.73167299,9.999e-05,2]
[328644656,1717661929966,200.0,0.0001,2]
[328644657,1717661963342,199.79021976,9.999e-05,2]
[328644658,1717662395428,154.95351395,9.999e-05,2]
[328644659,1717662455894,154.95351395,9.999e-05,2]
[328644660,1717662495129,686.02573019,9.999e-05,2]
[328644700,1717662632015,-759.55453663,0.00010999,2]
[328644702,1717662632025,-200.0,0.00011,2]
[328644704,1717662632035,-200.0,0.00012,2]
[328644706,1717662632044,-200.0,0.00013,2]
[328644708,1717662632055,-200.0,0.00014,2]
[328644710,1717662632064,-23051.3015696,0.00014673,2]
[328644712,1717662632074,-200.0,0.00015,2]
[328644714,1717662632084,-214.77484133,0.00015,2]
[328644716,1717662632094,-357.43769757,0.00015,2]
[328644718,1717662632104,-945.32067944,0.00015,2]
[328644720,1717662632118,-1689.82993633,0.00015998,2]
[328644722,1717662632128,-200.0,0.00016,2]
[328644724,1717662632137,-871.21736108,0.00016523,2]
[328644726,1717662632150,-292.31118058,0.00016523,2]
[328644728,1717662632160,-200.0,0.00017,2]
[328644730,1717662632169,-200.0,0.00018,2]
[328644731,1717662632179,-2762.77347703,0.00018,2]
[328644733,1717662632189,-328.44661609,0.000188,2]
[328644735,1717662632199,-1077.70116009,0.000189,2]
[328644737,1717662632209,-200.0,0.00019,2]
[328644739,1717662632218,-167.019448,0.00019178,2]
[328644741,1717662632227,-167.631425,0.00019178,2]
[328644743,1717662632236,-154.95351395,0.00019752,2]
[328644745,1717662632247,-157.987017,0.00019753,2]
[328644747,1717662632257,-153.0,0.00019753,2]
[328644748,1717662632266,-153.0,0.00019753,2]
[328644749,1717662632275,-153.0,0.00019753,2]
[328644750,1717662632284,-153.0,0.00019753,2]
[328644751,1717662632293,-153.0,0.00019753,2]
[328644752,1717662632302,-153.0,0.00019753,2]
[328644753,1717662632311,-153.0,0.00019753,2]
[328644754,1717662632322,-4236.27632862,0.00019757,2]
[328644755,1717662632332,-813.26359018,0.00019788,2]
[328644756,1717662632341,-151.0,0.00019853,3]
[328644757,1717662632351,-660.28106133,0.00019898,2]
[328644758,1717662632360,-800.41498532,0.000199,2]
[328644759,1717662632370,-384.57861938,0.000199,2]
[328644760,1717662632379,-328.44661609,0.00019957,2]
[328644761,1717662632388,-500.0,0.00019999,2]
[328644762,1717662632399,-500.0,0.00019999,2]
[328644763,1717662632408,-500.0,0.00019999,2]
[328644764,1717662632417,-500.0,0.00019999,2]
[328644766,1717662632427,-329.14054476,0.00019999,2]
[328644768,1717662632436,-440.76765275,0.00019999,2]
[328644770,1717662632446,-4096.98853548,0.0002,2]
[328644772,1717662632456,-1295.14791779,0.0002,2]
[328645150,1717662639098,-652.32979935,0.0002,7]
[328645152,1717662639109,-1181.32044194,0.0002,2]
[328645161,1717662639193,-1518.34020742,0.0002,2]
[328645605,1717662645232,-1012.2697971,0.0002,2]
[328645618,1717662645344,-1141.7771023,0.0002,2]
[328645844,1717663217582,1000.0,0.00025,60]
[328645846,1717663435400,-759.55453663,0.00017989,2]
[328645847,1717663435423,-154.95351395,0.0001799,2]
[328645848,1717663435445,-2762.77347703,0.00018796,2]
[328645849,1717663435579,-710.56668851,0.00018797,2]
[328645850,1717663435604,-10482.25493534,0.00018798,2]
[328645851,1717663435626,-190.09701144,0.00018799,2]
[328645852,1717663435648,-320.94399583,0.000188,2]
[328645853,1717663435671,-528.22484908,0.000188,2]
[328645854,1717663435691,-256.38574626,0.000188,2]
[328645855,1717663435714,-8834.24524593,0.00018848,2]
[328645869,1717663656355,2.86194479,0.00029625,120]
[328645870,1717663744260,686.02573019,9.999e-05,2]
[328645879,1717663823000,1017.16,0.00029624,120]
[328645896,1717663832279,-9911.76097796,0.00017931,2]
[328645897,1717663832291,-24900.0,0.00017932,2]
[328645898,1717663832305,-710.56668851,0.00018397,2]
[328645900,1717663832318,-202.13963443,0.00018398,2]
[328645902,1717663832331,-154.95351395,0.00018497,2]
[328645904,1717663832342,-1628.1313824,0.00018498,2]
[328645906,1717663832353,-422.57987928,0.000188,2]
[328645908,1717663832365,-10482.25493534,0.00018899,2]
[328645909,1717663832377,-34655.24929113,0.000189,2]
[328645910,1717663832390,-1500.19688755,0.000189,2]
[328645911,1717663832403,-2559.48235466,0.000189,2]
[328645912,1717663832415,-160.08529475,0.00019178,2]
[328645913,1717663832426,-280.8259963,0.00019527,2]
[328645914,1717663832436,-422.57987924,0.00019583,2]
[328645915,1717663832447,-185.2960688,0.00019753,2]
[328645916,1717663832459,-155.60045177,0.00019799,2]
[328645917,1717663832473,-153.0,0.000198,2]
[328645918,1717663832487,-4236.27632862,0.00019884,2]
[328645919,1717663832499,-151.0,0.00019899,2]
[328645920,1717663832512,-205.1548009,0.000199,2]
[328645921,1717663832526,-153.0,0.000199,2]
[328645922,1717663832540,-93.77324599,0.00019989,3]
[328645923,1717663832558,-339.5000166,0.00019989,3]
[328645947,1717663838519,-133.70673741,0.00019989,3]
[328645948,1717663838528,-195.21958702,0.00019998,2]
[328645949,1717663838538,-172.67974724,0.00019998,2]
[328645950,1717663838548,-98.39392826,0.00019998,2]
[328645951,1717663838565,-401.60607174,0.00019998,2]
[328645952,1717663838574,-181.05375632,0.00019998,2]
[328645953,1717663838584,-436.18789587,0.00019998,2]
[328645954,1717663838594,-500.0,0.00019998,2]
[328645955,1717663838604,-500.0,0.00019998,2]
[328645956,1717663838613,-500.0,0.00019998,2]
[328645957,1717663838623,-323.81685165,0.00019998,2]
[328645958,1717663838633,-500.0,0.00019998,2]
[328645959,1717663838642,-500.0,0.00019998,2]
[328645960,1717663838651,-564.27009122,0.00019998,2]
[328645961,1717663838660,-500.0,0.00019998,2]
[328645962,1717663838670,-620.92063205,0.00019998,2]
[328645963,1717663838679,-500.0,0.00019998,2]
[328645964,1717663838689,-500.0,0.00019998,2]
[328645965,1717663838699,-500.0,0.00019998,2]
[328645966,1717663838709,-500.0,0.00019998,2]
[328645967,1717663838718,-500.0,0.00019998,2]
[328645968,1717663838727,-500.0,0.00019998,2]
[328645969,1717663838737,-500.0,0.00019998,2]
[328645970,1717663838747,-172.18959,0.00019999,2]
[328645971,1717663838756,-172.18959,0.00019999,2]
[328645972,1717663838765,-151.0,0.00019999,2]
[328645973,1717663838775,-217.455146,0.00019999,2]
[328645974,1717663838784,-151.0,0.00019999,2]
[328645975,1717663838794,-217.455146,0.00019999,2]
[328645976,1717663838803,-151.0,0.00019999,2]
[328645977,1717663838813,-151.0,0.00019999,2]
[328645978,1717663838823,-351.120827,0.00019999,2]
[328645979,1717663838832,-351.120827,0.00019999,2]
[328645980,1717663838841,-151.0,0.00019999,2]
[328645981,1717663838851,-25134.09255147,0.0002,2]
[328645982,1717663838860,-200.0,0.0002,2]
[328645983,1717663838870,-161.4452641,0.0002,2]
[328645984,1717663838880,-191.9113065,0.0002,2]
[328645985,1717663838890,-587.8591499,0.0002,2]
[328645986,1717663838901,-205.1548009,0.0002,2]
[328645987,1717663838911,-153.7382468,0.0002,2]
[328645988,1717663838920,-1015.466514,0.0002,2]
[328645989,1717663838930,-1015.466514,0.0002,2]
[328645990,1717663838939,-151.0,0.0002,2]
[328645991,1717663838949,-172.18959,0.0002,2]
[328645992,1717663838959,-172.18959,0.0002,2]
[328645993,1717663838969,-217.455146,0.0002,2]
[328645994,1717663838978,-217.455146,0.0002,2]
[328645995,1717663838988,-223.508462,0.0002,2]
[328645996,1717663838997,-151.0,0.0002,2]
[328645997,1717663839007,-351.120827,0.0002,2]
[328645998,1717663839016,-351.120827,0.0002,2]
[328645999,1717663839026,-1455.17600829,0.0002,3]
[328646000,1717663839035,-1354.45712807,0.0002018,2]
[328646001,1717663839046,-471.94717193,0.00020181,2]
[328646002,1717663839056,-205.1548009,0.000202,2]
[328646003,1717663839066,-153.0,0.000202,2]
[328646004,1717663839075,-151.0,0.00020356,3]
[328646005,1717663839085,-422.57987924,0.00020365,2]
[328646006,1717663839095,-172.18959,0.00020366,2]
[328646007,1717663839104,-172.18959,0.00020366,2]
[328646008,1717663839114,-217.455146,0.00020366,2]
[328646009,1717663839123,-217.455146,0.00020366,2]
[328646010,1717663839133,-151.0,0.00020366,2]
[328646011,1717663839142,-351.120827,0.00020366,2]
[328646012,1717663839152,-351.120827,0.00020366,2]
[328646013,1717663839163,-207.3308972,0.0002038,2]
[328646014,1717663839173,-499.0,0.00020588,2]
[328646015,1717663839182,-150.0,0.00020588,2]
[328646016,1717663839192,-177.094,0.00020588,2]
[328646017,1717663839202,-280.8259963,0.00020756,2]
[328646018,1717663839211,-629.66317951,0.00020777,2]
[328646019,1717663839221,-195.178626,0.00020999,2]
[328646020,1717663839231,-351.120827,0.00020999,2]
[328646021,1717663839240,-351.120827,0.00020999,2]
[328646022,1717663839250,-151.0,0.00020999,5]
[328646023,1717663839260,-1000.0,0.00021,2]
[328646024,1717663839269,-172.6759396,0.00021,2]
[328646025,1717663839279,-168.42995,0.00021,2]
[328646026,1717663839289,-168.42995,0.00021,2]
[328646027,1717663839299,-1015.466514,0.00021,2]
[328646028,1717663839309,-1015.466514,0.00021,2]
[328646029,1717663839319,-393.74475304,0.00021147,2]
[328646030,1717663839328,-422.57987924,0.00021148,2]
[328646031,1717663839338,-172.18959,0.00021397,2]
[328646032,1717663839348,-172.18959,0.00021397,2]
[328646033,1717663839356,-217.455146,0.00021397,2]
[328646034,1717663839366,-217.455146,0.00021397,2]
[328646035,1717663839376,-234.0581462,0.00021397,2]
[328646036,1717663839385,-153.0,0.00021507,2]
[328646037,1717663839395,-151.0,0.00021642,5]
[328646038,1717663839404,-166.666666,0.00021644,2]
[328646039,1717663839414,-380.00587559,0.000217,4]
[328646040,1717663839423,-194.93299377,0.0002181,2]
[328646041,1717663839433,-620.48315898,0.00021816,2]
[328646042,1717663839442,-166.666666,0.00021918,2]
[328646043,1717663839451,-422.57987924,0.0002193,2]
[328646044,1717663839462,-280.8259963,0.00021985,2]
[328646045,1717663839472,-217.455146,0.00021999,2]
[328646046,1717663839484,-217.455146,0.00021999,2]
[328646047,1717663839494,-1000.0,0.00022,3]
[328646048,1717663839503,-270.0,0.00022,2]
[328646049,1717663839514,-12833.16980044,0.00022,2]
[328646050,1717663839524,-273.99232917,0.00022,2]
[328646051,1717663839533,-168.42995,0.00022,2]
[328646052,1717663839543,-168.42995,0.00022,2]
[328646053,1717663839553,-1015.466514,0.00022,2]
[328646054,1717663839563,-1015.466514,0.00022,2]
[328646055,1717663839574,-172.18959,0.00022,2]
[328646056,1717663839584,-172.18959,0.00022,2]
[328646057,1717663839593,-217.455146,0.00022,2]
[328646058,1717663839602,-217.455146,0.00022,2]
[328646059,1717663839612,-351.120827,0.00022,2]
[328646060,1717663839621,-351.120827,0.00022,2]
[328646061,1717663839631,-351.120827,0.00022,2]
[328646062,1717663839641,-351.120827,0.00022,2]
[328646063,1717663839652,-2529.5537581,0.0002203,7]
[328646064,1717663839661,-73790.37224229,0.0002203,7]
[328646066,1717663839670,-36113.36107243,0.0002203,2]
[328646067,1717663839680,-208.20443176,0.0002203,2]
[328646068,1717663839690,-796.78092261,0.0002203,2]
[328646069,1717663839699,-285.23985406,0.0002203,2]
[328646070,1717663839710,-156.23580596,0.0002203,2]
[328646071,1717663839719,-707.23540527,0.0002203,2]
[328646072,1717663839728,-1702.96524585,0.0002203,2]
[328646073,1717663839738,-2640.4246407,0.0002203,2]
[328646074,1717663839747,-268.42031735,0.0002203,7]
[328646075,1717663839757,-1904.43006571,0.0002203,2]
[328646076,1717663839767,-151.0,0.0002203,2]
[328646077,1717663839776,-168.42995,0.0002203,2]
[328646078,1717663839787,-168.42995,0.0002203,2]
[328646079,1717663839796,-168.42995,0.0002203,2]
[328646080,1717663839806,-168.42995,0.0002203,2]
[328646081,1717663839815,-1015.466514,0.0002203,2]
[328646082,1717663839825,-1015.466514,0.0002203,2]
[328646083,1717663839834,-1015.466514,0.0002203,2]
[328646084,1717663839843,-1015.466514,0.0002203,2]
[328646085,1717663839853,-172.18959,0.0002203,2]
[328646086,1717663839863,-172.18959,0.0002203,2]
[328646087,1717663839872,-172.18959,0.0002203,2]
[328646088,1717663839882,-172.18959,0.0002203,2]
[328646089,1717663839892,-217.455146,0.0002203,2]
[328646090,1717663839902,-217.455146,0.0002203,2]
[328646091,1717663839912,-217.455146,0.0002203,2]
[328646092,1717663839921,-217.455146,0.0002203,2]
[328646093,1717663839931,-217.455146,0.0002203,2]
[328646094,1717663839940,-217.455146,0.0002203,2]
[328646095,1717663839950,-217.455146,0.0002203,2]
[328646096,1717663839960,-217.455146,0.0002203,2]
[328646097,1717663839970,-351.120827,0.0002203,2]
[328646098,1717663839980,-351.120827,0.0002203,2]
[328646099,1717663839989,-351.120827,0.0002203,2]
[328646100,1717663839999,-351.120827,0.0002203,2]
[328646101,1717663840009,-351.120827,0.0002203,2]
[328646102,1717663840019,-351.120827,0.0002203,2]
[328646103,1717663840028,-155.1548451,0.00022031,2]
[328646104,1717663840038,-3000.0,0.00022031,2]
[328646105,1717663840048,-1101.50304144,0.00022031,2]
[328646106,1717663840059,-172.18959,0.00022031,2]
[328646107,1717663840068,-172.18959,0.00022031,2]
[328646108,1717663840078,-351.120827,0.00022031,2]
[328646109,1717663840088,-351.120832,0.00022031,2]
[328646110,1717663840098,-293.468978,0.00022032,2]
[328646111,1717663840107,-1000.0,0.00022182,2]
[328646112,1717663840117,-168.42995,0.00022187,2]
[328646113,1717663840127,-168.42995,0.00022187,2]
[328646114,1717663840137,-1015.466514,0.00022284,2]
[328646115,1717663840146,-1015.466514,0.00022284,2]
[328646116,1717663840155,-151.0,0.00022284,5]
[328646117,1717663840165,-300.0,0.00022355,2]
[328646118,1717663840174,-300.0,0.00022423,2]
[328646119,1717663840184,-166.666666,0.00022431,2]
[328646120,1717663840194,-237.9558007,0.000225,2]
[328646121,1717663840203,-31875.24202889,0.000225,2]
[328646122,1717663840212,-214.927471,0.000225,2]
[328646123,1717663840222,-151.0,0.000225,2]
[328646124,1717663840232,-151.0,0.000225,2]
[328646125,1717663840241,-151.0,0.000225,2]
[328646126,1717663840250,-168.42995,0.000225,2]
[328646127,1717663840259,-168.42995,0.000225,2]
[328646128,1717663840268,-168.42995,0.000225,2]
[328646129,1717663840278,-168.42995,0.000225,2]
[328646130,1717663840288,-1015.466514,0.000225,2]
[328646131,1717663840298,-1015.466514,0.000225,2]
[328646132,1717663840307,-1015.466514,0.000225,2]
[328646133,1717663840318,-1015.466514,0.000225,2]
[328646134,1717663840327,-172.18959,0.000225,2]
[328646135,1717663840337,-172.18959,0.000225,2]
[328646136,1717663840346,-172.18959,0.000225,2]
[328646137,1717663840356,-172.189582,0.000225,2]
[328646138,1717663840365,-153.0,0.00022904,2]
[328646139,1717663840376,-153.0,0.00022904,2]
[328646140,1717663840386,-153.0,0.00022904,2]
[328646141,1717663840396,-151.0,0.00022927,5]
[328646142,1717663840405,-166.666666,0.00022944,2]
[328646143,1717663840415,-155.58637617,0.00023,2]
[328646144,1717663840424,-1000.0,0.00023,5]
[328646145,1717663840434,-151.0,0.00023,2]
[328646146,1717663840443,-306.0,0.00023041,2]
[328646147,1717663840454,-280.8259963,0.00023213,2]
[328646148,1717663840463,-166.666666,0.00023456,2]
[328646149,1717663840474,-151.0,0.0002357,5]
[328646150,1717663840485,-168.42995,0.00023588,2]
[328646151,1717663840495,-168.42995,0.00023588,2]
[328646152,1717663840504,-498.0,0.00023588,2]
[328646153,1717663840514,-150.0,0.00023588,2]
[328646154,1717663840524,-1015.466514,0.00023726,2]
[328646155,1717663840533,-1015.466514,0.00023726,2]
[328646156,1717663840544,-1500.19688755,0.000239,2]
[328646157,1717663840556,-166.666666,0.00023969,2]
[328646158,1717663840566,-1000.0,0.00024,8]
[328646159,1717663840576,-151.0,0.00024213,7]
[328646160,1717663840586,-151.0,0.00024213,7]
[328646161,1717663840596,-923.37699481,0.00024223,2]
[328646162,1717663840605,-762.53852719,0.000244,2]
[328646163,1717663840615,-280.8259963,0.00024442,2]
[328646164,1717663840710,-600.0,0.00024479,2]
[328646165,1717663840720,-166.666666,0.00024482,2]
[328646166,1717663840731,-200.0,0.00024658,15]
[328646167,1717663840740,-203.93397,0.00024658,2]
[328646168,1717663840750,-203.93397,0.00024658,2]
[328646169,1717663840760,-203.93397,0.00024658,2]
[328646170,1717663840769,-203.93397,0.00024658,2]
[328646171,1717663840779,-203.93397,0.00024658,2]
[328646172,1717663840788,-203.93397,0.00024658,2]
[328646173,1717663840797,-203.93397,0.00024658,2]
[328646174,1717663840806,-203.93397,0.00024658,2]
[328646175,1717663840815,-203.93397,0.00024658,2]
[328646176,1717663840824,-203.93397,0.00024658,2]
[328646177,1717663840832,-203.93397,0.00024658,2]
[328646178,1717663840842,-203.93397,0.00024658,2]
[328646179,1717663840851,-203.93397,0.00024658,2]
[328646180,1717663840860,-203.93397,0.00024658,2]
[328646181,1717663840870,-203.93397,0.00024658,2]
[328646182,1717663840880,-203.93397,0.00024658,2]
[328646183,1717663840889,-203.93397,0.00024658,2]
[328646184,1717663840899,-203.93397,0.00024658,2]
[328646185,1717663840909,-203.93397,0.00024658,2]
[328646186,1717663840918,-203.933978,0.00024658,2]
[328646187,1717663840927,-600.0,0.00024734,2]
[328646188,1717663840936,-151.0,0.00024856,7]
[328646189,1717663840946,-151.0,0.00024856,7]
[328646190,1717663840955,-2000.0,0.000249,2]
[328646191,1717663840964,-1015.466514,0.000249,2]
[328646192,1717663840974,-1015.466507,0.000249,2]
[328646193,1717663840984,-64014.22264786,0.000249,3]
[328646194,1717663840999,-500.0,0.000249,3]
[328646195,1717663841011,-619.69894878,0.000249,3]
[328646246,1717663846542,-151.0,0.00019999,2]
[328646247,1717663846552,-151.0,0.0002,2]
[328646248,1717663846563,-181.68080341,0.00020588,2]
[328646249,1717663846673,-28.34019659,0.00020588,2]
[328646250,1717663846682,-393.88133422,0.000249,3]
[328646251,1717663846693,-830.6395,0.000249,3]
[328646255,1717663847788,-151.0,0.00019814,2]
[328646256,1717663847798,-151.0,0.00019999,2]
[328646257,1717663847808,-0.14849804,0.0002,2]
[328646258,1717663847915,-150.85150196,0.0002,2]
[328646260,1717663847925,-151.0,0.00020366,2]
[328646262,1717663847934,-151.0,0.00020999,2]
[328646264,1717663847944,-7134.99941882,0.000249,3]
[328646274,1717663940766,521.85317343,9.999e-05,2]
[328646275,1717663951144,154.95351395,9.999e-05,2]
[328646276,1717664168893,1752.82271236,9.999e-05,2]
[328646277,1717664228169,302.78496149,9.999e-05,2]